bitfinex-derivatives/quotes_BTCF0:USTF0_20241006
["timestamp","ask_amount","ask_price","bid_price","bid_amount"]
[1728229292243,0.09759623,62659.0,62658.0,0.069835]
[1728229292455,0.09759623,62659.0,62658.0,0.179835]
[1728229294043,0.02634297,62659.0,62658.0,0.179835]
[1728229294242,0.0322642,62659.0,62658.0,0.116]
[1728229294552,0.0322642,62659.0,62658.0,0.179835]
[1728229296553,0.0322642,62659.0,62658.0,0.069835]
[1728229304658,0.0322642,62659.0,62658.0,0.179835]
[1728229309752,0.11,62664.0,62658.0,0.116]
[1728229309958,0.11,62664.0,62659.0,0.063833]
[1728229310361,0.11,62664.0,62661.0,0.063831]
[1728229312664,0.11,62664.0,62661.0,0.064831]
[1728229313554,0.11,62664.0,62661.0,0.065831]
[1728229315261,0.38878192,62665.0,62661.0,0.065831]
[1728229315456,0.38786192,62665.0,62661.0,0.065831]
[1728229316565,0.38786192,62665.0,62661.0,0.064831]
[1728229316766,0.38786192,62665.0,62661.0,0.065831]
[1728229319461,0.3608,62664.0,62661.0,0.065831]
[1728229321059,0.3608,62664.0,62661.0,0.064831]
[1728229321260,0.3608,62664.0,62661.0,0.065831]
[1728229321772,0.07122293,62663.0,62661.0,0.065831]
[1728229321975,0.07122293,62662.0,62661.0,0.065831]
[1728229322162,0.07122293,62663.0,62661.0,0.065831]
[1728229322362,0.07122293,62662.0,62661.0,0.065831]
[1728229322664,0.07122293,62663.0,62661.0,0.065831]
[1728229323470,0.07122293,62663.0,62661.0,0.064831]
[1728229323670,0.07122293,62663.0,62661.0,0.065831]
[1728229325455,0.03213565,62663.0,62661.0,0.065831]
[1728229325662,0.03213565,62662.0,62661.0,0.065831]
[1728229326364,0.03213565,62663.0,62661.0,0.002]
[1728229326558,0.03213565,62663.0,62662.0,0.063831]
[1728229327067,0.03231864,62663.0,62662.0,0.063831]
[1728229329482,0.03231864,62663.0,62662.0,0.065831]
[1728229329765,0.03908703,62663.0,62662.0,0.065831]
[1728229329971,0.07140567,62663.0,62662.0,0.065831]
[1728229330573,0.03231864,62663.0,62662.0,0.002]
[1728229330970,0.18140576,62663.0,62662.0,0.002]
[1728229331671,0.14231864,62663.0,62662.0,0.002]
[1728229331972,0.18140591,62663.0,62662.0,0.002]
[1728229332876,0.23040019,62663.0,62662.0,0.002]
[1728229335263,0.59120019,62663.0,62662.0,0.002]
[1728229335472,0.54220591,62663.0,62662.0,0.002]
[1728229336878,0.5421036,62663.0,62662.0,0.002]
[1728229340880,0.1813036,62663.0,62662.0,0.002]
[1728229341078,0.5421036,62663.0,62662.0,0.002]
[1728229341677,0.1813036,62663.0,62662.0,0.002]
[1728229341883,0.5421036,62663.0,62662.0,0.002]
[1728229343580,0.5030148,62663.0,62662.0,0.002]
[1728229344274,0.5421036,62663.0,62662.0,0.002]
[1728229345873,0.1813036,62663.0,62662.0,0.002]
[1728229346073,0.5421036,62663.0,62662.0,0.002]
[1728229346483,0.063833,62660.0,62654.0,0.0037]
[1728229346688,0.03224942,62659.0,62656.0,0.11]
[1728229346877,0.03224942,62658.0,62657.0,0.063836]
[1728229349074,0.03224942,62658.0,62657.0,0.070836]
[1728229349674,0.03224942,62658.0,62657.0,0.071836]
[1728229350384,0.05859654,62658.0,62657.0,0.071836]
[1728229356081,0.05870381,62658.0,62657.0,0.071836]
[1728229356680,0.09779152,62658.0,62657.0,0.071836]
[1728229358686,0.05870381,62658.0,62657.0,0.071836]
[1728229361189,0.05872012,62658.0,62657.0,0.071836]
[1728229380709,0.02634712,62658.0,62657.0,0.071836]
[1728229380906,0.4708,62664.0,62657.0,0.008]
[1728229381108,0.03239973,62663.0,62659.0,0.063834]
[1728229381410,0.03239973,62662.0,62660.0,0.063832]
[1728229381601,0.11,62664.0,62660.0,0.063832]
[1728229381802,0.0324231,62663.0,62660.0,0.063832]
[1728229382110,0.0324231,62662.0,62660.0,0.063832]
[1728229382317,0.0324231,62661.0,62660.0,0.063832]
[1728229382903,0.0324231,62661.0,62660.0,0.064832]
[1728229383112,0.001,62663.0,62662.0,0.063831]
[1728229383708,0.04108589,62663.0,62662.0,0.063831]
[1728229384015,0.07356401,62663.0,62662.0,0.063831]
[1728229384203,0.07356401,62663.0,62662.0,0.064831]
[1728229384515,0.03447812,62663.0,62662.0,0.064831]
[1728229384909,0.03347812,62663.0,62662.0,0.064831]
[1728229385805,0.03447812,62663.0,62662.0,0.065831]
[1728229387915,0.14447812,62663.0,62662.0,0.002]
[1728229391412,0.1835655,62663.0,62662.0,0.002]
[1728229391719,0.20830812,62663.0,62662.0,0.002]
[1728229392218,0.24739665,62663.0,62662.0,0.002]
[1728229392613,0.72615665,62663.0,62662.0,0.002]
[1728229395115,0.24739665,62663.0,62662.0,0.002]
[1728229397514,0.24718416,62663.0,62662.0,0.002]
[1728229399218,0.60798416,62663.0,62662.0,0.002]
[1728229399420,0.60798416,62663.0,62655.0,0.0037]
[1728229399421,0.063833,62660.0,62655.0,0.0037]
[1728229399721,0.063833,62660.0,62651.0,0.3608]
[1728229399722,0.11,62656.0,62652.0,0.0037]
[1728229399916,0.11,62656.0,62651.0,0.424642]
[1728229400222,0.03221444,62655.0,62651.0,0.424642]
[1728229400420,0.11,62656.0,62651.0,0.424642]
[1728229400621,0.063833,62660.0,62651.0,0.424642]
[1728229400622,0.11,62652.0,62651.0,0.424642]
[1728229401309,0.14216375,62652.0,62651.0,0.424642]
[1728229402925,0.14216375,62652.0,62651.0,0.063842]
[1728229403625,0.14216375,62652.0,62651.0,0.070842]
[1728229405019,0.3608,62655.0,62651.0,0.007]
[1728229405213,0.0321035,62654.0,62653.0,0.11]
[1728229405425,0.38757259,62655.0,62653.0,0.11]
[1728229405724,0.02677259,62655.0,62654.0,0.063839]
[1728229405914,0.11,62661.0,62653.0,0.11]
[1728229406111,0.03213263,62660.0,62657.0,0.11]
[1728229406321,0.03213263,62659.0,62657.0,0.11]
[1728229406510,0.03213263,62658.0,62657.0,0.11]
[1728229406907,0.07122203,62660.0,62657.0,0.11]
[1728229407214,0.07122208,62659.0,62657.0,0.11]
[1728229407425,0.03213263,62658.0,62657.0,0.11]
[1728229407607,0.07122197,62660.0,62657.0,0.11]
[1728229407814,0.07122197,62659.0,62657.0,0.118]
[1728229408015,0.03213263,62658.0,62657.0,0.118]
[1728229408309,0.03213263,62658.0,62657.0,0.181836]
[1728229408514,0.03213263,62659.0,62657.0,0.181836]
[1728229408715,0.03213263,62658.0,62657.0,0.181836]
[1728229408914,0.03213263,62661.0,62657.0,0.181836]
[1728229409121,0.03213263,62660.0,62657.0,0.181836]
[1728229409318,0.11,62662.0,62657.0,0.181836]
[1728229409319,0.03213263,62659.0,62657.0,0.181836]
[1728229409511,0.03213263,62658.0,62657.0,0.174836]
[1728229409708,0.03213263,62658.0,62657.0,0.008]
[1728229409709,0.11,62658.0,62657.0,0.008]
[1728229409923,0.14213263,62658.0,62657.0,0.008]
[1728229411112,0.14213263,62658.0,62657.0,0.001]
[1728229411313,0.14213263,62658.0,62657.0,0.008]
[1728229411721,0.14221162,62658.0,62657.0,0.008]
[1728229413029,0.03221162,62658.0,62657.0,0.071836]
[1728229415825,0.3608,62660.0,62657.0,0.008]
[1728229416050,0.11,62658.0,62657.0,0.008]
[1728229417737,0.11,62658.0,62657.0,0.001]
[1728229417921,0.11,62658.0,62657.0,0.008]
[1728229419029,0.14225006,62658.0,62657.0,0.008]
[1728229421529,0.14226094,62658.0,62657.0,0.008]
[1728229424734,0.18135093,62658.0,62657.0,0.008]
[1728229428155,0.24518593,62658.0,62657.0,0.008]
[1728229429339,0.18135093,62658.0,62657.0,0.008]
[1728229436052,0.11,62658.0,62657.0,0.008]
[1728229436249,0.18129298,62658.0,62657.0,0.008]
[1728229436541,0.07129298,62658.0,62657.0,0.181836]
[1728229436940,0.07129298,62658.0,62657.0,0.071836]
[1728229437243,0.03220262,62658.0,62657.0,0.071836]
[1728229437746,0.07129127,62658.0,62657.0,0.071836]
[1728229437946,0.03220262,62658.0,62657.0,0.071836]
[1728229440242,0.07129102,62658.0,62657.0,0.071836]
[1728229440644,0.07129102,62658.0,62657.0,0.008]
[1728229443249,0.37337778,62659.0,62657.0,0.008]
[1728229443555,0.1202882,62658.0,62657.0,0.008]
[1728229444244,0.07129102,62658.0,62657.0,0.008]
[1728229445450,0.37337739,62659.0,62657.0,0.008]
[1728229445645,0.07129102,62658.0,62657.0,0.008]
[1728229446346,0.0390884,62658.0,62657.0,0.008]
[1728229446552,0.07129102,62658.0,62657.0,0.008]
[1728229453958,0.07134341,62658.0,62657.0,0.008]
[1728229454964,0.18134341,62658.0,62657.0,0.008]
[1728229463662,0.18137724,62658.0,62657.0,0.008]
[1728229466667,0.07137724,62658.0,62657.0,0.008]
[1728229467164,0.03228779,62658.0,62657.0,0.008]
[1728229467365,0.07137683,62658.0,62657.0,0.008]
[1728229467563,0.03228779,62658.0,62657.0,0.008]
[1728229467765,0.07137697,62658.0,62657.0,0.008]
[1728229468160,0.03228779,62658.0,62657.0,0.008]
[1728229470164,0.07137647,62658.0,62657.0,0.008]
[1728229476257,0.11050732,62658.0,62657.0,0.008]
[1728229476459,0.07141864,62658.0,62657.0,0.008]
[1728229476963,0.11,62659.0,62657.0,0.008]
[1728229477167,0.0714102,62658.0,62657.0,0.008]
[1728229478172,0.11,62659.0,62657.0,0.008]
[1728229478757,0.07140717,62658.0,62657.0,0.008]
[1728229478971,0.13524217,62658.0,62657.0,0.008]
[1728229479269,0.16804217,62658.0,62657.0,0.008]
[1728229479661,0.13550717,62658.0,62657.0,0.007]
[1728229479869,0.13550717,62658.0,62657.0,0.00509434]
[1728229480265,0.13550717,62658.0,62657.0,0.00409434]
[1728229480468,0.13550717,62658.0,62657.0,0.00509434]
[1728229481366,0.0641,62658.0,62657.0,0.00509434]
[1728229481567,0.1629573,62658.0,62657.0,0.00509434]
[1728229481767,0.1629573,62658.0,62657.0,0.008]
[1728229484577,0.1629573,62658.0,62648.0,0.06884285]
[1728229484578,0.47983549,62658.0,62648.0,0.06884285]
[1728229484781,0.11,62656.0,62647.0,0.11]
[1728229485076,0.13177886,62655.0,62646.0,0.23143671]
[1728229485278,0.13177886,62655.0,62647.0,0.11]
[1728229485476,0.13177886,62655.0,62653.0,0.06384]
[1728229485873,0.0988573,62654.0,62653.0,0.06384]
[1728229486176,0.0988573,62654.0,62648.0,0.014]
[1728229486381,0.0988573,62654.0,62651.0,0.063841]
[1728229487781,0.0988573,62654.0,62651.0,0.070841]
[1728229488176,0.13277886,62655.0,62651.0,0.070841]
[1728229488384,0.15944726,62655.0,62651.0,0.070841]
[1728229488779,0.0266684,62655.0,62651.0,0.070841]
[1728229488979,0.001,62654.0,62651.0,0.080841]
[1728229489686,0.03113506,62653.0,62651.0,0.080841]
[1728229489876,0.03113506,62652.0,62651.0,0.080841]
[1728229490687,0.03113506,62652.0,62651.0,0.075841]
[1728229490886,0.03113506,62652.0,62651.0,0.082841]
[1728229491388,0.03213506,62652.0,62651.0,0.082841]
[1728229491584,0.111,62652.0,62651.0,0.082841]
[1728229491888,0.14208364,62652.0,62651.0,0.082841]
[1728229493185,0.03208364,62652.0,62651.0,0.082841]
[1728229495386,0.07117511,62652.0,62651.0,0.082841]
[1728229497489,0.0710564,62652.0,62651.0,0.082841]
[1728229499193,0.03196416,62652.0,62651.0,0.082841]
[1728229499388,0.07105568,62652.0,62651.0,0.082841]
[1728229501791,0.03196416,62652.0,62651.0,0.082841]
[1728229502097,0.03198232,62652.0,62651.0,0.082841]
[1728229509887,0.07107412,62652.0,62651.0,0.082841]
[1728229510499,0.07108313,62652.0,62651.0,0.082841]
[1728229516992,0.03199135,62652.0,62651.0,0.082841]
[1728229518100,0.03199135,62652.0,62651.0,0.019]
[1728229518304,0.063843,62650.0,62644.0,0.00609453]
[1728229518504,0.47108399,62645.0,62644.0,0.00239453]
[1728229518812,0.47108399,62645.0,62642.0,0.063851]
[1728229518813,0.50203834,62645.0,62642.0,0.063851]
[1728229518999,0.03095435,62644.0,62642.0,0.063851]
[1728229519195,0.47196399,62645.0,62642.0,0.063851]
[1728229519401,0.03083978,62644.0,62642.0,0.063851]
[1728229519598,0.47108399,62645.0,62644.0,0.014]
[1728229519599,0.47188399,62645.0,62644.0,0.014]
[1728229519799,0.5019237,62645.0,62644.0,0.014]
[1728229520900,0.5019237,62645.0,62644.0,0.019]
[1728229521199,0.5019237,62645.0,62644.0,0.005]
[1728229521802,0.5029237,62645.0,62644.0,0.016]
[1728229522314,0.5303498,62645.0,62644.0,0.016]
[1728229523510,0.5313498,62645.0,62644.0,0.016]
[1728229523707,0.0294261,62645.0,62644.0,0.079849]
[1728229534112,0.06026443,62645.0,62644.0,0.079849]
[1728229534316,0.0294261,62645.0,62644.0,0.079849]
[1728229534716,0.06026487,62645.0,62644.0,0.079849]
[1728229534918,0.0294261,62645.0,62644.0,0.079849]
[1728229535618,0.0602647,62645.0,62644.0,0.079849]
[1728229535822,0.0294261,62645.0,62644.0,0.079849]
[1728229536403,0.0602648,62645.0,62644.0,0.079849]
[1728229536822,0.06026452,62645.0,62644.0,0.079849]
[1728229537118,0.06026472,62645.0,62644.0,0.079849]
[1728229537305,0.06026462,62645.0,62644.0,0.079849]
[1728229538205,0.06026455,62645.0,62644.0,0.079849]
[1728229538709,0.0294261,62645.0,62644.0,0.079849]
[1728229539816,0.06026444,62645.0,62644.0,0.079849]
[1728229540015,0.0294261,62645.0,62644.0,0.079849]
[1728229544323,0.06028953,62645.0,62644.0,0.079849]
[1728229545013,0.0294261,62645.0,62644.0,0.079849]
[1728229546512,0.06033748,62645.0,62644.0,0.079849]
[1728229547819,0.09943317,62645.0,62637.0,0.0037]
[1728229548014,0.09943317,62645.0,62637.0,0.063856]
[1728229548015,0.11,62638.0,62637.0,0.063856]
[1728229548214,0.14091138,62638.0,62634.0,0.00124]
[1728229548416,0.11,62635.0,62630.0,0.0037]
[1728229548629,0.11,62632.0,62629.0,0.063864]
[1728229548827,0.03091138,62631.0,62630.0,0.063863]
[1728229549032,0.14091138,62631.0,62630.0,0.063863]
[1728229550223,0.11,62631.0,62630.0,0.063863]
[1728229551329,0.11,62631.0,62630.0,0.077863]
[1728229551330,0.111,62631.0,62630.0,0.077863]
[1728229551835,0.112,62631.0,62630.0,0.078863]
[1728229552127,0.002,62631.0,62630.0,0.078863]
[1728229552321,0.112,62631.0,62630.0,0.078863]
[1728229552919,0.112,62631.0,62630.0,0.071863]
[1728229554828,0.002,62631.0,62630.0,0.071863]
[1728229555125,0.11,62633.0,62630.0,0.071863]
[1728229555126,0.0271812,62635.0,62634.0,0.063859]
[1728229555326,0.0111,62641.0,62640.0,0.063853]
[1728229555533,0.00239511,62644.0,62640.0,0.11]
[1728229555732,0.00239511,62644.0,62643.0,0.06385]
[1728229556422,0.00239511,62644.0,62643.0,0.17385]
[1728229557527,0.00239511,62644.0,62643.0,0.17485]
[1728229557934,0.00539511,62644.0,62643.0,0.17485]
[1728229559031,0.03260436,62644.0,62643.0,0.17485]
[1728229562535,0.03020925,62644.0,62643.0,0.17485]
[1728229563644,0.03020925,62644.0,62643.0,0.06485]
[1728229579747,0.06080925,62644.0,62643.0,0.06485]
[1728229584258,0.09170715,62644.0,62643.0,0.06485]
[1728229584457,0.09170715,62644.0,62643.0,0.001]
[1728229584661,0.15470715,62644.0,62643.0,0.001]
[1728229585157,0.15470715,62644.0,62643.0,0.06485]
[1728229587456,0.15470715,62644.0,62643.0,0.001]
[1728229587758,0.1938043,62644.0,62643.0,0.001]
[1728229588157,1.27272705,62644.0,62635.0,0.063858]
[1728229588463,1.27272705,62644.0,62634.0,0.0037]
[1728229588464,0.11,62638.0,62634.0,0.0037]
[1728229588754,0.11,62638.0,62633.0,0.06386]
[1728229588755,0.11,62635.0,62633.0,0.06386]
[1728229588956,0.0308979,62634.0,62633.0,0.06386]
[1728229589650,0.0308979,62634.0,62629.0,0.067564]
[1728229589856,0.11,62630.0,62629.0,0.063864]
[1728229590253,0.14084529,62630.0,62629.0,0.063864]
[1728229591362,0.111,62630.0,62629.0,0.071864]
[1728229591962,0.112,62630.0,62629.0,0.071864]
[1728229592558,0.112,62630.0,62629.0,0.008]
[1728229593867,0.1428475,62630.0,62629.0,0.008]
[1728229594261,0.16904429,62630.0,62629.0,0.008]
[1728229594569,0.13819679,62630.0,62629.0,0.008]
[1728229595464,0.49899679,62630.0,62629.0,0.008]
[1728229598565,0.5298448,62630.0,62629.0,0.008]
[1728229599356,0.52984565,62630.0,62629.0,0.008]
[1728229600058,0.52984617,62630.0,62629.0,0.008]
[1728229600372,0.49899679,62630.0,62629.0,0.008]
[1728229601569,1.67270913,62630.0,62627.0,0.0023945]
[1728229601769,0.479,62629.0,62627.0,0.0023945]
[1728229601968,1.64265979,62630.0,62627.0,0.0023945]
[1728229602173,1.64185979,62630.0,62627.0,0.0023945]
[1728229602873,1.04185979,62630.0,62627.0,0.0023945]
[1728229603276,1.04185979,62630.0,62622.0,0.063871]
[1728229603476,0.11,62623.0,62622.0,0.063871]
[1728229604475,0.11,62623.0,62622.0,0.064871]
[1728229604678,0.11,62623.0,62622.0,0.065871]
[1728229604679,0.111,62623.0,62622.0,0.065871]
[1728229605279,0.112,62623.0,62622.0,0.065871]
[1728229606786,0.002,62623.0,62622.0,0.065871]
[1728229607395,0.002,62623.0,62622.0,0.175871]
[1728229607878,0.002,62623.0,62622.0,0.065871]
[1728229608386,0.02893644,62623.0,62622.0,0.065871]
[1728229608584,0.02893644,62623.0,62622.0,0.098871]
[1728229608585,0.002,62623.0,62622.0,0.098871]
[1728229611896,0.02925769,62623.0,62622.0,0.098871]
[1728229612191,0.002,62623.0,62622.0,0.098871]
[1728229614895,0.002,62623.0,62622.0,0.130771]
[1728229620001,0.002,62623.0,62622.0,0.240771]
[1728229628106,0.002,62623.0,62622.0,1.319851]
[1728229630499,0.0111,62629.0,62628.0,0.063866]
[1728229630805,0.0148,62636.0,62635.0,0.063858]
[1728229631105,0.11,62640.0,62638.0,0.063855]
[1728229631301,0.0669157,62639.0,62638.0,0.063855]
[1728229631496,0.00979595,62639.0,62638.0,0.173855]
[1728229632310,0.0074,62639.0,62638.0,0.173855]
[1728229633001,0.0074,62639.0,62638.0,0.174855]
[1728229634408,0.0074,62639.0,62638.0,0.535655]
[1728229635001,0.0074,62639.0,62638.0,1.614575]
[1728229635203,0.02618972,62642.0,62641.0,0.063852]
[1728229635410,0.0074,62649.0,62641.0,0.11]
[1728229635610,0.11,62651.0,62647.0,0.063846]
[1728229635815,0.11,62649.0,62648.0,0.063845]
[1728229636712,0.124,62649.0,62648.0,0.063845]
[1728229637304,0.138,62649.0,62648.0,0.173845]
[1728229637507,0.138,62649.0,62648.0,0.063845]
[1728229648813,0.138,62649.0,62648.0,0.173845]
[1728229649015,0.138,62649.0,62648.0,0.063845]
[1728229651619,0.138,62649.0,62643.0,0.06385]
[1728229651808,0.11,62644.0,62643.0,0.06385]
[1728229653022,0.11,62646.0,62642.0,0.3608]
[1728229653220,0.11,62646.0,62645.0,0.063848]
[1728229653426,0.39208,62652.0,62648.0,0.063845]
[1728229653616,0.39208,62652.0,62642.0,0.4708]
[1728229653617,0.11,62647.0,62646.0,0.063847]
[1728229656013,0.124,62647.0,62646.0,0.063847]
[1728229656529,0.138,62647.0,62646.0,0.063847]
[1728229660515,0.125,62647.0,62646.0,0.064847]
[1728229661422,0.14377719,62647.0,62646.0,0.066847]
[1728229661821,0.112,62647.0,62646.0,0.066847]
[1728229662125,0.14378645,62647.0,62646.0,0.066847]
[1728229664029,0.14380574,62647.0,62646.0,0.066847]
[1728229666629,0.112,62647.0,62646.0,0.066847]
[1728229669324,0.112,62647.0,62646.0,0.067847]
[1728229670332,0.14382602,62647.0,62646.0,0.067847]
[1728229670516,0.18291861,62647.0,62646.0,0.067847]
[1728229672531,0.18191861,62647.0,62646.0,0.067847]
[1728229673518,0.18076055,62647.0,62646.0,0.065847]
[1728229674134,0.18076055,62647.0,62646.0,0.002]
[1728229674536,0.18076055,62647.0,62644.0,0.063848]
[1728229674537,0.18176055,62647.0,62645.0,0.063847]
[1728229674725,0.07076055,62646.0,62645.0,0.063847]
[1728229675035,0.03166629,62646.0,62645.0,0.063847]
[1728229676228,0.03266629,62646.0,62645.0,0.063847]
[1728229678334,0.03256351,62646.0,62645.0,0.063847]
[1728229682443,0.07165757,62646.0,62645.0,0.063847]
[1728229682748,0.03256351,62646.0,62645.0,0.063847]
[1728229682941,0.07165753,62646.0,62645.0,0.063847]
[1728229684942,0.03256351,62646.0,62645.0,0.063847]
[1728229685141,0.001,62646.0,62645.0,0.173847]
[1728229688051,0.001,62646.0,62645.0,0.063847]
[1728229691448,0.11,62648.0,62645.0,0.063847]
[1728229691632,0.11,62648.0,62645.0,0.065847]
[1728229691835,0.11,62648.0,62645.0,0.067847]
[1728229692446,0.11,62648.0,62645.0,0.004]
[1728229693449,0.001,62646.0,62643.0,0.0315]
[1728229694442,0.111,62648.0,62643.0,0.0315]
[1728229695144,0.03168649,62647.0,62643.0,0.0345]
[1728229695343,0.11,62648.0,62643.0,0.0345]
[1728229695551,0.03168154,62647.0,62643.0,0.0345]
[1728229695746,0.03168154,62646.0,62643.0,0.0345]
[1728229695950,0.11,62648.0,62643.0,0.0345]
[1728229696151,0.03168182,62647.0,62643.0,0.0345]
[1728229696341,0.03168182,62646.0,62643.0,0.0345]
[1728229696650,0.11,62648.0,62643.0,0.09835]
[1728229696853,0.03168485,62647.0,62643.0,0.09835]
[1728229697052,0.03168485,62646.0,62643.0,0.09835]
[1728229697251,0.11,62648.0,62643.0,0.09835]
[1728229697436,0.03167874,62647.0,62644.0,0.063849]
[1728229697643,0.03167874,62646.0,62644.0,0.063849]
[1728229697837,0.03167874,62645.0,62644.0,0.063849]
[1728229698039,0.03167874,62645.0,62644.0,0.173849]
[1728229698247,0.0074,62651.0,62650.0,0.063843]
[1728229698556,0.02616657,62652.0,62650.0,0.173843]
[1728229698557,0.00092,62652.0,62650.0,0.173843]
[1728229698752,0.0074,62657.0,62652.0,0.063841]
[1728229698955,0.03191099,62656.0,62653.0,0.0307]
[1728229699159,0.03191099,62655.0,62653.0,0.1407]
[1728229699349,0.03191099,62654.0,62653.0,0.1407]
[1728229699750,0.52918981,62659.0,62653.0,0.1407]
[1728229699751,0.03191099,62658.0,62653.0,0.1407]
[1728229700051,0.02778981,62659.0,62656.0,0.173837]
[1728229700243,0.02778981,62659.0,62653.0,0.0307]
[1728229700244,0.02694981,62659.0,62658.0,0.11]
[1728229700448,0.03213025,62659.0,62658.0,0.11]
[1728229701045,0.00239447,62662.0,62658.0,0.11]
[1728229701243,0.03212891,62661.0,62658.0,0.11]
[1728229701451,0.03212891,62660.0,62658.0,0.11]
[1728229701651,0.03212891,62659.0,62658.0,0.11]
[1728229702152,0.00239447,62662.0,62658.0,0.11]
[1728229702459,0.03211096,62661.0,62658.0,0.11]
[1728229702757,0.03211096,62660.0,62658.0,0.11]
[1728229702960,0.01639447,62662.0,62658.0,0.11]
[1728229703159,0.03212179,62661.0,62658.0,0.11]
[1728229703459,0.03212179,62660.0,62658.0,0.11]
[1728229703657,0.01639447,62662.0,62658.0,0.11]
[1728229703956,0.03211567,62661.0,62660.0,0.063833]
[1728229704860,0.04611567,62661.0,62660.0,0.063833]
[1728229705556,0.06020424,62661.0,62660.0,0.063833]
[1728229706059,0.028,62661.0,62660.0,0.063833]
[1728229709151,0.028,62661.0,62660.0,0.424633]
[1728229711272,0.028,62661.0,62660.0,0.534633]
[1728229714763,0.028,62661.0,62660.0,0.424633]
[1728229728474,0.0915,62661.0,62660.0,0.424633]
[1728229734890,0.0915,62661.0,62660.0,0.063833]
[1728229736270,0.12385424,62661.0,62660.0,0.063833]
[1728229736669,0.16293975,62661.0,62660.0,0.063833]
[1728229736874,0.16294016,62661.0,62660.0,0.063833]
[1728229737068,0.12385424,62661.0,62660.0,0.063833]
[1728229737778,0.16294029,62661.0,62660.0,0.063833]
[1728229738071,0.12385424,62661.0,62660.0,0.063833]
[1728229738276,0.1629413,62661.0,62660.0,0.063833]
[1728229738775,0.1629413,62661.0,62655.0,0.067537]
[1728229738776,0.60244585,62661.0,62655.0,0.067537]
[1728229738973,0.11,62656.0,62653.0,0.06384]
[1728229739172,0.03218585,62655.0,62654.0,0.063839]
[1728229739474,0.14218585,62655.0,62654.0,0.063839]
[1728229741664,0.11,62655.0,62650.0,0.063843]
[1728229741882,0.11,62651.0,62650.0,0.063843]
[1728229743685,0.15588416,62651.0,62650.0,0.063843]
[1728229744073,0.16988416,62651.0,62650.0,0.063843]
[1728229745771,0.138,62651.0,62650.0,0.063843]
[1728229747474,0.16977846,62651.0,62644.0,0.0074]
[1728229747671,0.16977846,62651.0,62641.0,0.0037]
[1728229747672,0.063849,62644.0,62641.0,0.0037]
[1728229747870,0.11,62640.0,62637.0,0.063856]
[1728229748078,0.0323,62639.0,62637.0,0.063856]
[1728229748274,0.0636,62639.0,62635.0,0.00239447]
[1728229748473,0.11,62636.0,62635.0,0.00239447]
[1728229749574,0.11,62636.0,62635.0,0.00439447]
[1728229750983,0.111,62636.0,62635.0,0.00639447]
[1728229751886,0.111,62636.0,62635.0,0.07025247]
[1728229751887,0.001,62636.0,62635.0,0.07025247]
[1728229752084,0.111,62636.0,62635.0,0.07025247]
[1728229752279,0.02755627,62636.0,62635.0,0.07025247]
[1728229752584,0.001,62636.0,62635.0,0.07025247]
[1728229754292,0.0074,62642.0,62641.0,0.063852]
[1728229754491,0.3608,62645.0,62644.0,0.063849]
[1728229754679,0.3608,62645.0,62644.0,0.173849]
[1728229755294,0.0074,62651.0,62650.0,0.063843]
[1728229755482,0.13666868,62651.0,62650.0,0.063843]
[1728229755678,0.11,62651.0,62650.0,0.063843]
[1728229756684,0.124,62651.0,62650.0,0.063843]
[1728229757502,0.124,62651.0,62650.0,0.173843]
[1728229757503,0.014,62651.0,62650.0,0.173843]
[1728229758082,0.014,62651.0,62650.0,0.063843]
[1728229758384,0.028,62651.0,62650.0,0.063843]
[1728229780695,0.138,62651.0,62650.0,0.063843]
[1728229781198,0.16994669,62651.0,62650.0,0.063843]
[1728229794806,0.16986419,62651.0,62650.0,0.063843]
[1728229798009,0.05986419,62651.0,62650.0,0.063843]
[1728229800105,0.16986419,62651.0,62650.0,0.063843]
[1728229800712,0.05986419,62651.0,62650.0,0.063843]
[1728229801003,0.16986419,62651.0,62650.0,0.063843]
[1728229801408,0.16986419,62651.0,62644.0,0.0037]
[1728229801605,0.16986419,62651.0,62645.0,0.063848]
[1728229801606,0.11,62646.0,62645.0,0.063848]
[1728229802005,0.14186419,62646.0,62645.0,0.063848]
[1728229803013,0.03186419,62646.0,62645.0,0.063848]
[1728229804297,0.009,62651.0,62650.0,0.063843]
[1728229804504,0.04091325,62651.0,62650.0,0.063843]
[1728229805106,0.03191325,62651.0,62650.0,0.063843]
[1728229805408,0.03191325,62652.0,62651.0,0.063842]
[1728229805606,0.03191381,62652.0,62651.0,0.063842]
[1728229807217,0.03191381,62652.0,62651.0,0.173842]
[1728229807515,0.03199696,62652.0,62651.0,0.173842]
[1728229808410,0.05999696,62652.0,62651.0,0.173842]
[1728229808913,0.05999696,62652.0,62651.0,0.063842]
[1728229810310,0.05999696,62652.0,62651.0,0.173842]
[1728229812121,0.06003136,62652.0,62651.0,0.173842]
[1728229818425,0.17003136,62652.0,62651.0,0.063842]
[1728229826323,0.17006853,62652.0,62651.0,0.063842]
[1728229831325,0.20209769,62652.0,62651.0,0.063842]
[1728229831626,0.17002916,62652.0,62651.0,0.063842]
[1728229832219,0.138,62652.0,62651.0,0.063842]
[1728229832518,0.17005813,62652.0,62651.0,0.063842]
[1728229833031,0.028,62652.0,62651.0,0.063842]
[1728229840436,0.138,62652.0,62651.0,0.063842]
[1728229841633,0.138,62652.0,62647.0,0.063846]
[1728229841821,0.11,62648.0,62645.0,0.40872004]
[1728229842028,0.0306,62647.0,62645.0,0.3608]
[1728229842225,0.0306,62647.0,62645.0,0.424648]
[1728229843032,0.3608,62646.0,62641.0,0.04792004]
[1728229843228,0.3608,62646.0,62640.0,0.56060559]